Cogmind - Beta 12 @@@ ROGUE MODE // 2023.03.18 @ 10:55:15 Player: TrialByFire Result: Destroyed by P-60 Hacker with Shock Rifle Performance ------------- Evolutions (3) 1500 Regions Visited (8) 1600 Robots Destroyed (60) 300 Value Destroyed (3242) 3242 Prototype IDs (4) 80 Alien Tech Used (0) 0 Bonus (1204) 1204 TOTAL SCORE: 7926 Bonus ------- High Alert Combat Kills 242 Follower Combat Kills 100 Entered Garrisons 200 Used RIF Installer 500 Aligned with FarCom 300 Friendly Fire -138 Cogmind --------- Core Integrity 0/700 Matter 270/300 Energy 290/290 System Corruption 29% Temperature Cool (0) Movement Walking (130) Location -7/Factory Parts ------- > --- POWER (1) -------- Reinforced Deuterium Engine > --- PROPULSION (4) --- Light Treads Armored Treads Improved Titanium Leg Improved Titanium Leg > --- UTILITY (6) ------ Large Storage Unit > --- WEAPON (2) ------- Power Maul > --- INVENTORY (15) --- Improved Deuterium Engine Carbon-fiber Leg Armored Huge Wheel High-capacity Storage Unit Core Analyzer Hacking Suite Shock Rifle Shock Rifle Grenade Launcher Improved Datajack Improved Remote Datajack Peak State ------------ > --- POWER ------------ Light Angular Momentum Engine > --- PROPULSION ------- Aluminum Leg Carbon-fiber Leg Carbon-fiber Leg Carbon-fiber Leg > --- UTILITY ---------- Improved Heat Sink Large Storage Unit Improved Terrain Scanner Force Booster Layered Light Armor Plating Medium Reactive Plating > --- WEAPON ----------- Katana Longsword +1 > --- INVENTORY -------- Improved Deuterium Engine Light Treads Light Treads Light Treads High-capacity Storage Unit Compact Matter Pod Hacking Suite Relay Coupler [NC] Relay Coupler [Grunt] Heavy Laser Beamcaster Grenade Launcher Improved Datajack Improved Remote Datajack Katana [Rating: 49] Favorites ----------- Power Reinforced Deuterium Engine Engine Reinforced Deuterium Engine Power Core Nuclear Core Propulsion Aluminum Leg Treads Light Treads Leg Aluminum Leg Wheel Wheel Utility Large Storage Unit Device Force Booster Storage Large Storage Unit Processor Targeting Computer Hackware Relay Coupler [Grunt] Protection Layered Light Armor Plating Weapon Katana Energy Gun Medium Laser Energy Cannon Heavy Particle Cannon Launcher Grenade Launcher Special Weapon Improved Remote Datajack Impact Weapon Power Maul Slashing Weapon Katana Piercing Weapon Spear Special Melee Weapon Improved Datajack Build | -11 -10 -10 -10 -9 -8 -7 -7 -7 ------- Run | Jun Mat Min Exi Min Mat Fac Gar Fac Slots Evolved 6 | . . . . . 4 2 . . Power . | . . . . . . . . . Propulsion 2 | . . . . . 2 . . . Utility 4 | . . . . . 2 2 . . Weapon . | . . . . . . . . . Parts Attached 104 | 6 8 1 2 4 7 3 33 40 Power 8 | 1 1 . . 1 1 . 1 3 Engine 7 | 1 1 . . 1 1 . 1 2 Core 1 | . . . . . . . . 1 Reactor . | . . . . . . . . . Propulsion 31 | 2 1 . . 2 3 . 11 12 Treads 10 | . . . . . 1 . 2 7 Leg 17 | 2 1 . . . . . 9 5 Wheel 4 | . . . . 2 2 . . . Hover . | . . . . . . . . . Flight . | . . . . . . . . . Utility 23 | 1 2 . 1 . 2 2 4 11 Device 10 | . . . . . 1 1 2 6 Storage 4 | 1 1 . 1 . . . . 1 Processor 4 | . 1 . . . . . . 3 Hackware 2 | . . . . . . . 1 1 Protection 3 | . . . . . 1 1 1 . Artifact . | . . . . . . . . . Weapon 42 | 2 4 1 1 1 1 1 17 14 Energy Gun 18 | 2 4 . . . . . 5 7 Energy Cannon 1 | . . . . . . . . 1 Ballistic Gun . | . . . . . . . . . Ballistic Cannon . | . . . . . . . . . Launcher 1 | . . 1 . . . . . . Special Weapon 1 | . . . . . . . . 1 Impact Weapon 1 | . . . . . . . . 1 Slashing Weapon 16 | . . . 1 . 1 1 9 4 Piercing Weapon 1 | . . . . 1 . . . . Special Melee Weapon 3 | . . . . . . . 3 . Unidentified Prototypes 2 | . . . 1 . . 1 . . Parts Lost 39 | . 1 . . 1 2 1 8 26 Power 1 | . . . . . . . . 1 Propulsion 14 | . . . . 1 1 . 5 7 Utility 14 | . . . . . . . 2 12 Weapon 10 | . 1 . . . 1 1 1 6 Highest Loss Streak 9 | . 1 . . 1 2 1 2 9 To Critical Strikes 1 | . . . . . . . . 1 Average Slot Usage (%) 95 | . 85 100 100 99 98 92 97 93 Engine 8 | . 14 14 14 14 9 7 6 6 Treads 4 | . . . . . 4 7 1 11 Leg 20 | . 28 28 28 25 . . 24 16 Wheel 3 | . . . . 1 31 23 3 . Device 15 | . . . . . 8 11 20 21 Storage 8 | . 14 14 14 14 9 7 7 7 Processor 5 | . . 14 14 14 9 7 2 6 Hackware 1 | . . . . . . . 1 3 Protection 5 | . . . . . 8 11 11 1 Energy Gun 6 | . 27 16 10 . . . . 7 Launcher 1 | . . 11 14 5 . . . . Slashing Weapon 8 | . . . 3 14 12 14 13 5 Naked Turns . | . . . . . . . . . Heaviest Build 75 | 12 17 18 29 30 43 64 75 54 Greatest Support 89 | 20 20 20 20 20 40 30 55 89 Greatest Overweight (x) 3 | 2 . . 1 1 1 2 3 1 Average Overweight (x) . | . . . . 1 . 1 1 . Largest Inventory Capacity 20 | 8 10 10 15 15 15 15 15 20 Average Capacity 14 | 7 9 10 14 15 15 15 15 15 Most Carried 15 | 8 10 9 11 14 15 15 15 15 Average Carried 12 | 3 8 8 10 12 13 14 14 13 Final Capacity 15 | 8 10 10 15 15 15 15 15 15 Final Carried 15 | 6 8 9 11 11 15 15 14 12 Class Distribution -------------------- 39% | Scavenger-Assassin 30% | Mutant 16% | Scavenger-Mutant 7% | Assassin 6% | Scavenger-Skirmisher Dominant Class ---------------- Mutant | -10/Materials Mutant | -10/Mines Mutant | -10/Exiles Mutant | -9/Mines Mutant | -8/Materials Assassin | -7/Factory Scavenger-Assassin | -7/Garrison Scavenger-Mutant | -7/Factory Resources | -11 -10 -10 -10 -9 -8 -7 -7 -7 ----------- Run | Jun Mat Min Exi Min Mat Fac Gar Fac Matter Collected 1431 | 163 167 23 . 45 237 . 354 442 Remotely . | . . . . . . . . . Salvage Created 2620 | . 504 25 . . 453 . 683 955 Parts 108 | . 29 6 . . 18 . 23 32 Haulers Intercepted 1 | . . . . . . . . 1 Recyclers Shooed . | . . . . . . . . . Parts Field Recycled . | . . . . . . . . . Retrieved Matter . | . . . . . . . . . Parts Self-Destructed . | . . . . . . . . . Prevented . | . . . . . . . . . Kills | -11 -10 -10 -10 -9 -8 -7 -7 -7 ------- Run | Jun Mat Min Exi Min Mat Fac Gar Fac Combat Hostiles Destroyed 50 | . 13 3 . . 8 . 13 13 Melee 27 | . . . . . 8 . 12 7 Guns 13 | . 9 . . . . . 1 3 AOE 7 | . 4 3 . . . . . . Classes Destroyed 14 | . 5 . . . 3 . 2 4 Worker 1 | . . . . . . . . 1 Builder 1 | . 1 . . . . . . . Hauler 1 | . . . . . . . . 1 Recycler 1 | . . . . . . . . 1 Operator 1 | . 1 . . . . . . . Watcher 5 | . 2 . . . 1 . . 2 Swarmer 10 | . 6 3 . . . . 1 . Grunt 22 | . 7 . . . 5 . 7 3 Brawler 4 | . . . . . . . 2 2 Duelist 3 | . . . . . 1 . . 2 Sentry 4 | . . . . . 1 . 2 1 Specialist 1 | . . . . . . . . 1 Hunter 2 | . . . . . 1 . . 1 Programmer 4 | . . . . . . . 1 3 Best Kill Streak 6 | . 6 3 . . 3 . 3 2 Combat Bots Only 3 | . 3 3 . . 3 . 3 2 Max Kills in Single Turn 2 | . 2 2 . . 1 . 1 1 Gunslinging . | . . . . . . . . . Exploded 2 | . 2 2 . . . . . . Melee 1 | . . . . . 1 . 1 1 Uniques/NPCs Destroyed . | . . . . . . . . . Combat | -11 -10 -10 -10 -9 -8 -7 -7 -7 -------- Run | Jun Mat Min Exi Min Mat Fac Gar Fac Damage Taken 5448 | . 343 39 . 137 346 . 1741 2842 Core 896 | . 125 . . 41 27 . 389 314 Absorbed by Shields . | . . . . . . . . . Core Remaining (%) 76 | 100 . . . 33 95 . . . Volleys Fired 120 | . 37 2 . . . . 32 49 Largest 2 | . 2 2 . . . . 2 2 Hottest 144 | . 100 80 . . . . 144 144 Shots Fired 181 | . 64 4 . . . . 37 76 Gun 170 | . 64 2 . . . . 37 67 Cannon 6 | . . . . . . . . 6 Launcher 2 | . . 2 . . . . . . Special 3 | . . . . . . . . 3 Kinetic . | . . . . . . . . . Thermal 100 | . 2 2 . . . . 37 59 Explosive 2 | . . 2 . . . . . . Electromagnetic 76 | . 62 . . . . . . 14 Robot Hit Streak 22 | . 5 1 . . . . 5 22 Robot Miss Streak 3 | . 3 1 . . . . 1 3 Penetration Max . | . . . . . . . . . Secondary Targets 1 | . . . . . . . 1 . Max Gunslinging Chain 1 | . . . . . . . 1 . Shots Hit Robots 197 | . 39 1 . 3 28 . 41 85 Core Hits 84 | . 26 3 . 1 9 . 17 28 Critical Kills . | . . . . . . . . . Critical Parts Destroyed 3 | . . . . . . . . 3 Critical Strikes 23 | . 1 . . 1 1 . 8 12 Burn 7 | . . . . . . . 3 4 Corrupt 2 | . 1 . . . . . . 1 Smash 3 | . . . . . . . . 3 Sever 11 | . . . . 1 1 . 5 4 Melee Attacks 201 | . . . . 3 30 1 105 62 Impact 12 | . . . . . . . . 12 Slashing 183 | . . . . 2 28 1 102 50 Piercing 3 | . . . . 1 2 . . . Sneak Attacks 10 | . . . . . . . 6 4 Combat Hostiles 5 | . . . . . . . 3 2 Follow-up Attacks 6 | . . . . 1 3 . 1 1 Damage Inflicted 6454 | . 713 102 . 100 1360 . 1819 2360 Guns 1852 | . 533 . . . . . 182 1137 Cannons 50 | . . . . . . . . 50 Explosions 468 | . 180 102 . . . . 138 48 Melee 4084 | . . . . 100 1360 . 1499 1125 Ramming . | . . . . . . . . . Kinetic . | . . . . . . . . . Thermal 1475 | . 205 . . . . . 182 1088 Explosive 240 | . . 102 . . . . 138 . Electromagnetic 655 | . 508 . . . . . . 147 Impact 195 | . . . . . . . . 195 Slashing 3805 | . . . . 79 1297 . 1499 930 Piercing 84 | . . . . 21 63 . . . Highest Corruption 29 | . . . . . 1 . 3 29 Average Corruption 6 | . . . . . 1 . 2 9 Corruption Purged . | . . . . . . . . . Corruption Blocked 3 | . . . . . . . . 3 Effects 90 | . . . . . 1 . 22 67 Message Errors 25 | . . . . . 1 . 7 17 Matter Fused 24 | . . . . . . . 2 22 Heat Flow Errors 13 | . . . . . . . 5 8 Energy Discharges 6 | . . . . . . . 2 4 Parts Rejected 1 | . . . . . . . 1 . Parts Fused 2 | . . . . . . . 1 1 Data Loss (minor) 10 | . . . . . . . 3 7 Data Loss (major) 6 | . . . . . . . 1 5 Misfires 2 | . . . . . . . . 2 Alerts 1 | . . . . . . . . 1 Overload Shots . | . . . . . . . . . Overflow Damage 542 | . . . . . 96 . 215 231 Projectiles . | . . . . . . . . . Explosions 87 | . . . . . . . 87 . Melee 455 | . . . . . 96 . 128 231 Knockbacks 1 | . . . . . . . . 1 Impact 1 | . . . . . . . . 1 Kinetic . | . . . . . . . . . Secondary . | . . . . . . . . . Self-Inflicted Damage 193 | . 38 . . . . . 155 . Shots 2 | . 1 . . . . . 1 . Rammed . | . . . . . . . . . Targets Rammed . | . . . . . . . . . Kicked . | . . . . . . . . . Crushed . | . . . . . . . . . Highest Temperature 255 | . 138 18 . . 7 . 247 255 Average Temperature 69 | . 45 12 . . 7 . 85 108 Received Heat Transfer 966 | . 141 . . . 180 . 264 381 Effects 3 | . . . . . . . 3 . Energy Bleed 1 | . . . . . . . 1 . Interference 2 | . . . . . . . 2 . Siege Activations . | . . . . . . . . . Robots Corrupted . | . . . . . . . . . Combat Hostiles . | . . . . . . . . . Parts Fried 4 | . 3 . . . . . . 1 Impact Corruptions 5 | . . . . . . . . 5 Robots Melted 3 | . . . . . . . . 3 Combat Hostiles 3 | . . . . . . . . 3 Parts Melted 9 | . . . . . . . 2 7 Heat Transferred 2814 | . 224 . . . . . 555 2035 Parts Sabotaged . | . . . . . . . . . Parts Stolen . | . . . . . . . . . Parts Stripped . | . . . . . . . . . Power Chain Reactions 5 | . 4 . . . . . . 1 Missiles Intercepted . | . . . . . . . . . Alert | -11 -10 -10 -10 -9 -8 -7 -7 -7 ------- Run | Jun Mat Min Exi Min Mat Fac Gar Fac Peak Influence 1516 | . 326 169 . . 247 112 1516 819 Initial 785 | . . 87 . . . 112 75 785 Average 449 | . 128 140 . . 136 106 546 558 Maximum Alert Level 4 | . 1 . . . 1 . 4 3 Low Security (%) 31 | 100 80 100 . 100 69 100 30 . Level 1 9 | . 19 . . . 30 . 13 2 Level 2 40 | . . . . . . . 25 81 Level 3 12 | . . . . . . . 17 15 Level 4 5 | . . . . . . . 13 . Level 5 . | . . . . . . . . . High Security . | . . . . . . . . . Max Security . | . . . . . . . . . Squads Dispatched 14 | . 2 . . 1 . . . 11 Investigation 2 | . . . . 1 . . . 1 Extermination 4 | . . . . . . . . 4 Reinforcement 5 | . 2 . . . . . . 3 Assault 2 | . . . . . . . . 2 Garrison 1 | . . . . . . . . 1 Intercept . | . . . . . . . . . Searches Triggered . | . . . . . . . . . Construction Impeded . | . . . . . . . . . Haulers Reinforced . | . . . . . . . . . Active Scanning Responses . | . . . . . . . . . Cargo Convoy Interrupts 1 | . . . . . . . . 1 Stealth | -11 -10 -10 -10 -9 -8 -7 -7 -7 --------- Run | Jun Mat Min Exi Min Mat Fac Gar Fac Distress Signals 4 | . 2 . . . 2 . . . Communications Jammed . | . . . . . . . . . Distress Signals . | . . . . . . . . . Times Spotted 79 | . 21 2 . 1 12 . 18 25 Peak Tracking Total 7 | . 3 3 . 1 4 . 7 5 Tactical Retreats 11 | . 2 . . . . . 6 3 Traps | -11 -10 -10 -10 -9 -8 -7 -7 -7 ------- Run | Jun Mat Min Exi Min Mat Fac Gar Fac Traps Triggered 6 | . . . . . 1 . 4 1 Indirectly . | . . . . . . . . . Trap Hack Attempts 23 | . . . . . . . 23 . Triggered . | . . . . . . . . . Disarmed . | . . . . . . . . . Reprogrammed 9 | . 6 . . . . . 3 . Reused . | . . . . . . . . . Traps Extracted . | . . . . . . . . . Installed . | . . . . . . . . . Triggered 1 | . . . . . . . . 1 Machines | -11 -10 -10 -10 -9 -8 -7 -7 -7 ---------- Run | Jun Mat Min Exi Min Mat Fac Gar Fac Machines Disabled 11 | . . . . . . . 11 . Max in Single Turn 2 | . . . . . . . 2 . Garrison Relay 4 | . . . . . . . 4 . Phase Generator 1 | . . . . . . . 1 . Machines Repaired . | . . . . . . . . . Machines Sabotaged . | . . . . . . . . . Overloaded Fab Kills . | . . . . . . . . . Hacking | -11 -10 -10 -10 -9 -8 -7 -7 -7 --------- Run | Jun Mat Min Exi Min Mat Fac Gar Fac Machines Accessed 19 | . 2 . 1 1 2 2 2 9 Terminals 13 | . 2 . . . 2 1 2 6 Fabricators 1 | . . . . . . . . 1 Repair Stations . | . . . . . . . . . Recycling Units . | . . . . . . . . . Scanalyzers 2 | . . . . . . . . 2 Garrison Access 1 | . . . . . . 1 . . Total Hacks 45 | . 5 . 5 1 5 3 2 24 Successful 29 | . 4 . 5 1 3 2 . 14 Failed 16 | . 1 . . . 2 1 2 10 Catastrophic 6 | . . . . . . . 2 4 Database Lockouts . | . . . . . . . . . Manual 14 | . 1 . 1 . 2 1 1 8 Terminals 23 | . 5 . . . 5 2 2 9 Fabricators 1 | . . . . . . . . 1 Repair Stations . | . . . . . . . . . Recycling Units . | . . . . . . . . . Scanalyzers 14 | . . . . . . . . 14 Garrison Access 1 | . . . . . . 1 . . Terminal Hacks 11 | . 3 . 5 1 1 . . 1 Record 5 | . . . 5 . . . . . Prototype ID Bank 1 | . . . . . . . . 1 Open Door 1 | . . . . 1 . . . . Locate Traps 2 | . 1 . . . 1 . . . Reprogram Traps 1 | . 1 . . . . . . . Hauler Manifests 1 | . 1 . . . . . . . Fabricator Hacks 1 | . . . . . . . . 1 Network Status 1 | . . . . . . . . 1 Repair Station Hacks . | . . . . . . . . . Recycling Unit Hacks . | . . . . . . . . . Scanalyzer 10 | . . . . . . . . 10 Insert Component 5 | . . . . . . . . 5 Analyze 5 | . . . . . . . . 5 Garrison Access Hacks 1 | . . . . . . 1 . . Unlock Access 1 | . . . . . . 1 . . Unauthorized Hacks 6 | . 1 . . . 2 1 . 2 Terminals 6 | . 1 . . . 2 1 . 2 Botnet 6 | . 1 . . . 2 1 . 2 Fabricators . | . . . . . . . . . Repair Stations . | . . . . . . . . . Recycling Units . | . . . . . . . . . Scanalyzers . | . . . . . . . . . Garrison Access . | . . . . . . . . . Data Cores Recovered 1 | . 1 . . . . . . . Used . | . . . . . . . . . Hacking Detections 16 | . 2 . . . 2 2 2 8 Full Trace Events . | . . . . . . . . . Feedback Events . | . . . . . . . . . Feedback Blocked . | . . . . . . . . . Robot Schematics Acquired . | . . . . . . . . . Robots Built . | . . . . . . . . . Authchips . | . . . . . . . . . Time . | . . . . . . . . . Total Robot Build Rating . | . . . . . . . . . Part Schematics Acquired 5 | . . . . . . . . 5 Parts Built . | . . . . . . . . . Authchips . | . . . . . . . . . Time . | . . . . . . . . . Total Part Build Rating . | . . . . . . . . . Parts Repaired . | . . . . . . . . . Time . | . . . . . . . . . Parts Recycled . | . . . . . . . . . Recycled Matter . | . . . . . . . . . Retrieved Matter . | . . . . . . . . . Retrieved Components . | . . . . . . . . . Parts Scanalyzed 5 | . . . . . . . . 5 Part Schematics Acquired 5 | . . . . . . . . 5 Parts Damaged . | . . . . . . . . . Bothacking | -11 -10 -10 -10 -9 -8 -7 -7 -7 ------------ Run | Jun Mat Min Exi Min Mat Fac Gar Fac Used RIF Installer 1 | . . . . . . . 1 . Robots Hacked 2 | . . . . . . . . 2 Non-combat 2 | . . . . . . . . 2 Combat . | . . . . . . . . . Robot Hacks Applied 2 | . . . . . . . . 2 drop_inventory 1 | . . . . . . . . 1 map_route 1 | . . . . . . . . 1 Relay Couplers Released 17 | . . . . . . . 17 . Machine Destruction 14 | . . . . . . . 14 . Programmers 3 | . . . . . . . 3 . Attached 2 | . . . . . . . 1 1 Fabnet Peak Effective % . | . . . . . . . . . Robots Rewired 3 | . . . . . . . 3 . Allies Hacked 1 | . . . . . . . 1 . Hacks Repelled . | . . . . . . . . . Allies | -11 -10 -10 -10 -9 -8 -7 -7 -7 -------- Run | Jun Mat Min Exi Min Mat Fac Gar Fac Total Allies 5 | . . . . . . . 5 . Largest Group 3 | . . . . . . . 3 . Highest-Rated Group 175 | . . . . . . . 175 . Highest-Rated Ally 95 | . . . . . . . 95 . Total Orders . | . . . . . . . . . Ally Attacks 13 | . . . . . . . 13 . Total Damage 670 | . . . . . . . 670 . Kills 3 | . . . . . . . 3 . Allies Corrupted 1 | . . . . . . . 1 . Allies Melted . | . . . . . . . . . Intel | -11 -10 -10 -10 -9 -8 -7 -7 -7 ------- Run | Jun Mat Min Exi Min Mat Fac Gar Fac Robot Analysis Total . | . . . . . . . . . Derelict Logs Recovered . | . . . . . . . . . Drone Launches . | . . . . . . . . . Drone Recoveries . | . . . . . . . . . Exploration | -11 -10 -10 -10 -9 -8 -7 -7 -7 ------------- Run | Jun Mat Min Exi Min Mat Fac Gar Fac Turns Passed 7456 | 71 553 231 803 160 357 169 2602 2510 Spaces Moved 3620 | 48 306 180 449 54 254 151 1074 1104 Core 10 | 10 . . . . . . . . Treads 464 | . . . . . . . . 464 Legs 2480 | 38 306 180 449 41 . . 826 640 Wheels 666 | . . . . 13 254 151 248 . Hover . | . . . . . . . . . Flight . | . . . . . . . . . Fastest Speed 50 | 50 120 120 120 95 80 95 110 122 Average Speed 156 | 112 120 120 177 167 86 103 173 172 Slowest Speed 260 | 150 120 120 190 190 95 110 260 240 Overloaded Moves . | . . . . . . . . . Propulsion Burnouts . | . . . . . . . . . Robots Hopped . | . . . . . . . . . Cave-ins Triggered 5 | . . . . . . . 3 2 Exploration Rate (%) 33 | 3 52 36 91 11 22 4 63 22 Regions Visited 8 Branch Regions 3 Pre-discovered Areas 1 | . . . 1 . . . . . Known Exits Taken 1 | . . . . . . 1 . . Unknown Exits Taken 6 | 1 1 1 1 1 1 . . . Scrap Searched . | . . . . . . . . . Spaces Dug 83 | . . . . . . 1 65 17 Terrain Destroyed 198 | . 16 21 . . . 1 140 20 Melee 64 | . . . . . . 1 46 17 Projectile 19 | . . . . . . . 19 . AOE 115 | . 16 21 . . . . 75 3 Terrain Rammed . | . . . . . . . . . Walls Destroyed . | . . . . . . . . . Machines Disabled . | . . . . . . . . . Actions | -11 -10 -10 -10 -9 -8 -7 -7 -7 --------- Run | Jun Mat Min Exi Min Mat Fac Gar Fac Total 5001 | 65 431 190 454 120 366 161 1672 1542 Wait 814 | . 59 7 . 56 63 . 372 257 Move 3610 | 47 305 179 448 53 253 151 1070 1104 Hop . | . . . . . . . . . Pick Up 88 | 12 13 1 3 3 13 3 17 23 Fast Attach 13 | . . . . . 1 2 4 6 Attach 51 | 6 5 . . 1 6 1 11 21 Detach 3 | . . . . . . . 2 1 Swap 41 | . 3 1 2 3 . 1 18 13 Drop 41 | . 9 . 1 2 4 2 13 10 Fire 120 | . 37 2 . . . . 32 49 Melee 182 | . . . . 2 26 1 95 58 Ram . | . . . . . . . . . Kick . | . . . . . . . . . Crush . | . . . . . . . . . Escape Stasis 15 | . . . . . . . 15 . Rewire . | . . . . . . . . . Trap 23 | . . . . . . . 23 . Miscellaneous . | . . . . . . . . . Route ------- -11/Junkyard -10/Materials (discovered 2 exits: [*Min x2]) -10/Mines -10/Exiles (discovered 2 exits: *Min x2) -9/Mines -8/Materials -7/Factory -7/Garrison (discovered 2 exits: *Fac x2) -7/Factory History --------- Turn | Location | Event 12 | -11/Junkyard | Discovered new exit (range 16) 72 | -11/Junkyard | Entered Materials 240 | -10/Materials | Discovered new exit (range 10) 306 | -10/Materials | Build established: Mutant 584 | -10/Materials | Discovered new exit (range 11) 625 | -10/Materials | Entered Mines 851 | -10/Mines | Deemed a non-threat by the Exiles lab entrance 851 | -10/Mines | Discovered new exit (range 5) 856 | -10/Mines | Entered Exiles 874 | -10/Exiles | Discovered new exit (range 14) 890 | -10/Exiles | Met 8R-AWN 910 | -10/Exiles | Met EX-HEX 993 | -10/Exiles | Met EX-DEC 1036 | -10/Exiles | Visited The Gauntlet 1265 | -10/Exiles | Learned location of Zion (-7) 1303 | -10/Exiles | Met EX-BIN 1330 | -10/Exiles | Aligned with FarCom system 1331 | -10/Exiles | Given EX-Vault access code 1428 | -10/Exiles | Opened EX-Vault 1440 | -10/Exiles | Found Prototype Slashing Weapon 1441 | -10/Exiles | Identified Longsword +1 1482 | -10/Exiles | Warned to stay clear of 0b10 Research branches 1636 | -10/Exiles | Discovered new exit (range 14) 1659 | -10/Exiles | Left Exiles lab with Longsword +1 1659 | -10/Exiles | Entered Mines 1664 | -9/Mines | Assembled infested the area 1682 | -9/Mines | Discovered new exit (range 16) 1704 | -9/Mines | Met a Derelict shopkeep closing up shop 1800 | -9/Mines | Core integrity fell below 50% 1819 | -9/Mines | Entered Materials 1819 | -8/Materials | Evolved 4 slots: Propulsion x2, Utility x2 1984 | -8/Materials | Discovered new exit (range 13) 2176 | -8/Materials | Entered Factory 2176 | -7/Factory | Evolved 2 slots: Utility x2 2345 | -7/Factory | Identified exit to Garrison 2345 | -7/Factory | Entered Garrison 2468 | -7/Garrison | Triggered checkpoint 2522 | -7/Garrison | Triggered checkpoint 2536 | -7/Garrison | Build established: Assassin 2549 | -7/Garrison | Garrison Relay disabled 2704 | -7/Garrison | P-70 Sage assimilated allied Gladiator 4c 3059 | -7/Garrison | Build established: Scavenger-Assassin 3119 | -7/Garrison | Crushed by falling debris 3172 | -7/Garrison | Garrison Relay disabled 3220 | -7/Garrison | Crushed by falling debris 3727 | -7/Garrison | Crushed by falling debris 3820 | -7/Garrison | Core integrity fell below 50% 4033 | -7/Garrison | Discovered new exit (range 9) 4226 | -7/Garrison | Triggered checkpoint 4289 | -7/Garrison | Garrison Relay disabled 4327 | -7/Garrison | Installed Relay Interface Framework 4590 | -7/Garrison | Found embedded Infiltrators 4638 | -7/Garrison | Triggered checkpoint 4676 | -7/Garrison | Garrison Relay disabled 4783 | -7/Garrison | Discovered new exit (range 10) 4857 | -7/Garrison | Phase Generator disabled 4900 | -7/Garrison | Triggered checkpoint 4947 | -7/Garrison | Entered Factory 5968 | -7/Factory | Build established: Scavenger-Skirmisher 6147 | -7/Factory | First assault squad dispatched 6322 | -7/Factory | System corruption reached 10% 6379 | -7/Factory | Lost 9 parts (2n5u2w) 6660 | -7/Factory | Build established: Scavenger-Mutant 6813 | -7/Factory | Cargo convoy interrupted 7223 | -7/Factory | Core integrity fell below 20% 7260 | -7/Factory | Lost 3 parts (1n2w) 7388 | -7/Factory | Crushed by falling debris 7389 | -7/Factory | Crushed by falling debris 7420 | -7/Factory | Lost 6 parts (5u1w) 7454 | -7/Factory | Garrison activated, responded to threat 7457 | -7/Factory | Destroyed by P-60 Hacker with Shock Rifle Last Messages --------------- 07389_ System corrupted by crushing effect (+3). 07389_ Target Analyzer destroyed. 07389_ System corrupted by crushing effect (+3). 07402_ System corrupted: Heat flow error (+270). 07404_ Connecting with Terminal... 07418_ Detecting nearby Garrison Access. 07428_ System corrupted: Heat flow error (+147). 07431_ Acquired Core Analyzer. 07443_ DA OUFB>D|2KPV4/ZIR& 07447_ ALERT: Rogue bot located, Programmers report to Factory Zone 3Z. 07451_ P-60 Hacker suffers critical hit (Smash). 07451_ Destroyed Shock Rifle. 07451_ P-60 Hacker system corrupted by crushing effect. 07454_ P-60 Hacker suffers critical hit (Smash). 07454_ Destroyed Target Analyzer. 07454_ Destroyed Remote Datajack. 07454_ P-60 Hacker system corrupted by crushing effect. 07454_ P-60 Hacker knocked back. 07454_ P-60 Hacker calls for garrison reinforcements. 07454_ ALERT: Activating Garrison Access F002. Map ----- +----------------------------------------------------+ | ?????????????????????????????????????????????????? | | ?????????????????????????????????????????????????? | | ?????????????????????????????????????????????????? | | ?????????????????????????????????????????????????? | | ?????????????????????????????????????????????????? | | ?????????????????????????????????????????????????? | | ?????????????????????????????????????????????????? | | ?????????????????????????????????????????????????? | | ?????????????????????????????????????????????????? | | ?????????????????????????????????????????????????? | | ?????????????????????????????????????????????????? | | ?????????????????????????????????????????????????? | | ?????????????????????????????????????????????????? | | ?????????????????????????????????????????????????? | | ?????????????????????????????????????????????????? | | ?????????????????????????????????????????????????? | | ?????????????????""??????????????????????????????? | | ????????????????? ???????????????????????????? | | ?????????????????""" "??Y????????????????????????? | | ?????????????????""" ""??????????????????????????? | | ??????????????????"" ""??????????????????????????? | | ???????????????????? ?????????????????????????? | | ?????????????????????! ?????????????????s???????? | | ?????????????????????? ?????????????????s??????? | | ??????????????????######p#######?######+#####????? | | ??????????????????# @ #?# ?????? | | ???#??????????????# #?# ????? | | ????#?????????????# """"""" ### """ """ ???? | | ??????????????????# """"""" + + """ """ #??? | | ??#??????????#???# u""""""" ### """ """ ! #? ? | | ??????????????????# u""""""" #?# "" "" #??? | | ????????????#????## #?# "" "" #??? | | ?????#???????????## #?# #??? | | ????????#?????????# #?# #??? | | #???############## ""T"" #?# #??# | | #???# # " """"" #?# #??? | | ##?#?# ##### #?# #?## | | ?????# ##??#############################??? | | ?????# ##?#???# """ #?# """ ] ##?#??? | | ?????# """" #????#?# * """ !### """ #?????? | | ?????# """" #?#?##?# """ #?# """ #???#?# | | ?????# """" #??##??# !%#?# = ####### | | ????## """" ##?????# "T"=#?# * # # | | ??#??# ##?#???# ""*%#######+### | | ?????######+####?????# =/% | | ????????# #############+###### ### | | ######### " #???# #?# # | | "T #?####### | | ######### #############??#????? | | ##????###] ################??#??????????????#?? | +----------------------------------------------------+ Best States ------------- Heat Dissipation 79 Energy Generation 18 Energy Capacity 290 Matter Stores 300 Matter Capacity 300 Sight Range 16 Terrain Scan Range 16 Terrain Scan Density 10 Additional Mass Support 9 Base Temperature (-) 100 Armor Coverage 375 Resistance: KI 30 Melee Speed Boost 20 Evasion (%) 55 Targeting Accuracy 5 Target Analysis 5 Core Analysis 6 Recoil Reduction 4 Particle Charging 15 Force Boost 20 Relay Coupler Types 1 Relay Coupler Value 33 Item Schematics ----------------- Imp. Titanium Leg | -7/Factory | Scanalyzed Imp. Remote Datajack | -7/Factory | Scanalyzed Beamcaster | -7/Factory | Scanalyzed Rnf. Deuterium Engine | -7/Factory | Scanalyzed Hcp. Storage Unit | -7/Factory | Scanalyzed Robot Schematics ------------------ None Fabricated ------------ Nothing Alien Tech Used ----------------- None Achievements -------------- None Challenges ------------ None Game ------ Seed AssaultWeaponField Manual? 0 Play Time 01:34:25 Cumulative 58.1 hours Start 2023.03.18 @ 08:57:07 End 2023.03.18 @ 10:55:15 Sessions 1 Manual Loads 0 Difficulty Rogue Special Mode None Game No. 37 Rogue 37 Adventurer 0 Explorer 0 Win Type - Total 0 Types 0/0/0/0/0/0/0/0/0 Lore% 28 Gallery% 36 Achievement% 30 Wizard Run 0 Options --------- ASCII 0 Keyboard 0 Movement Numpad Keybinds 0 Fullscreen 1 Font 24/Terminus Map View 76x50 Tactical HUD 1 Map Filters NONE Filters NONE Steam 1 RUN: c4186654-5e47-49e1-8b75-a8722526e44c